bitfinex/quotes_BTCUSD_20240921
["timestamp","ask_amount","ask_price","bid_price","bid_amount"]
[1726937580904,0.00252928,63275.0,63274.0,0.52587448]
[1726937581161,0.00252928,63275.0,63274.0,0.50779555]
[1726937581349,0.00252928,63275.0,63274.0,0.52587451]
[1726937581494,0.00252928,63275.0,63274.0,0.50779555]
[1726937582140,0.00252928,63275.0,63274.0,0.52587977]
[1726937582357,0.00252928,63275.0,63274.0,0.6558716]
[1726937583138,0.00252928,63275.0,63274.0,0.6538716]
[1726937583338,0.00252928,63275.0,63274.0,0.6558716]
[1726937583550,0.00252928,63275.0,63274.0,0.6538716]
[1726937584330,0.00252928,63275.0,63274.0,0.6558716]
[1726937585679,0.00252928,63275.0,63274.0,0.6538716]
[1726937586141,0.00252928,63275.0,63274.0,0.6558716]
[1726937587039,0.00252928,63275.0,63274.0,0.52587977]
[1726937587709,0.00252928,63275.0,63274.0,0.52387977]
[1726937587913,0.00252928,63275.0,63274.0,0.52587977]
[1726937588545,0.00252928,63275.0,63274.0,0.50579555]
[1726937588763,0.00252928,63275.0,63274.0,0.52387663]
[1726937589223,0.00252928,63275.0,63274.0,0.68692849]
[1726937589696,0.00252928,63275.0,63274.0,0.68492849]
[1726937590348,0.00252928,63275.0,63274.0,1.10261349]
[1726937590584,0.00252928,63275.0,63274.0,1.135599]
[1726937590830,0.00252928,63275.0,63274.0,1.20672431]
[1726937591303,0.00152928,63275.0,63274.0,1.20672431]
[1726937591726,0.00152928,63275.0,63274.0,1.21072431]
[1726937592153,0.00152928,63275.0,63274.0,1.19630288]
[1726937592393,0.00152928,63275.0,63274.0,1.20025414]
[1726937592838,0.00152928,63275.0,63274.0,1.03920228]
[1726937594593,0.00152928,63275.0,63274.0,0.94958624]
[1726937594839,0.00152928,63275.0,63274.0,0.99699527]
[1726937595519,0.00152928,63275.0,63274.0,0.99697748]
[1726937597274,0.00152928,63275.0,63274.0,0.99698056]
[1726937598764,0.00152928,63275.0,63274.0,0.97888958]
[1726937599196,0.00152928,63275.0,63274.0,0.99698599]
[1726937599632,0.00152928,63275.0,63274.0,0.94957696]
[1726937602290,0.00152928,63275.0,63274.0,0.94958817]
[1726937603853,0.00152928,63275.0,63274.0,0.9970079]
[1726937604533,0.00152928,63275.0,63274.0,0.94958817]
[1726937604750,0.00152928,63275.0,63274.0,0.93148055]
[1726937604971,0.00152928,63275.0,63274.0,0.94959043]
[1726937608277,0.00152928,63275.0,63274.0,0.99701016]
[1726937609212,0.00152928,63275.0,63274.0,0.94959043]
[1726937610788,0.00152928,63275.0,63274.0,0.99701535]
[1726937610996,0.00195968,63277.0,63276.0,0.792187]
[1726937611426,0.00195968,63277.0,63276.0,0.9427791]
[1726937612555,0.00195968,63277.0,63276.0,0.9447791]
[1726937612740,0.27802692,63283.0,63279.0,0.160028]
[1726937612985,0.12139324,63280.0,63279.0,0.160028]
[1726937613202,0.21729324,63280.0,63276.0,0.4726671]
[1726937613435,0.21729324,63280.0,63277.0,0.316068]
[1726937613653,0.12139324,63277.0,63276.0,0.3126291]
[1726937613877,0.12139324,63277.0,63276.0,0.48828193]
[1726937614789,0.21729324,63277.0,63276.0,0.48828193]
[1726937614974,0.21729324,63277.0,63276.0,0.50611942]
[1726937615185,0.21729324,63277.0,63276.0,0.19004442]
[1726937615392,0.21729324,63277.0,63276.0,0.18804442]
[1726937615627,0.21729324,63277.0,63276.0,0.50611942]
[1726937615846,0.21729324,63277.0,63276.0,0.60217255]
[1726937616064,0.21829324,63277.0,63276.0,0.60217255]
[1726937616282,0.21829324,63277.0,63276.0,0.50611942]
[1726937618357,0.21829324,63277.0,63276.0,0.50777142]
[1726937619740,0.12239324,63277.0,63276.0,0.50777142]
[1726937620168,0.12239324,63277.0,63276.0,0.19169642]
[1726937620383,0.12239324,63277.0,63276.0,0.50777142]
[1726937621277,0.12239324,63277.0,63276.0,0.19169642]
[1726937622530,0.12239324,63277.0,63276.0,0.50777142]
[1726937623425,0.12239324,63277.0,63276.0,0.19169642]
[1726937624613,0.12239324,63277.0,63276.0,0.18969642]
[1726937625878,0.12239324,63277.0,63276.0,0.19169642]
[1726937627293,0.001,63277.0,63276.0,0.19169642]
[1726937633060,0.001,63277.0,63276.0,0.29559537]
[1726937634482,0.001,63277.0,63276.0,0.19169642]
[1726937640850,0.001,63277.0,63276.0,0.03365942]
[1726937642023,0.001,63277.0,63276.0,0.03165942]
[1726937642253,0.001,63277.0,63276.0,0.03365942]
[1726937654452,0.001,63277.0,63276.0,0.19169642]
[1726937654670,0.001,63277.0,63276.0,0.295605]
[1726937656232,0.001,63277.0,63276.0,0.34306576]
[1726937656441,0.001,63277.0,63276.0,0.18502876]
[1726937656665,0.001,63277.0,63276.0,0.34306576]
[1726937656889,0.001,63277.0,63276.0,0.18502876]
[1726937657112,0.001,63277.0,63276.0,0.34306576]
[1726937659960,0.001,63277.0,63276.0,0.3430641]
[1726937661433,0.001,63277.0,63276.0,0.6591391]
[1726937661648,0.001,63277.0,63276.0,0.3430641]
[1726937663518,0.001,63277.0,63276.0,0.41590482]
[1726937663739,0.001,63277.0,63276.0,0.64159414]
[1726937663943,0.001,63277.0,63276.0,0.34306237]
[1726937665020,0.001,63277.0,63276.0,0.34306171]
[1726937665567,0.001,63277.0,63276.0,0.36175285]
[1726937667406,0.001,63277.0,63276.0,0.67782785]
[1726937667821,0.001,63277.0,63276.0,0.36175285]
[1726937668270,0.154026,63281.0,63277.0,0.158033]
[1726937668470,0.154026,63281.0,63280.0,0.002]
[1726937668890,0.154026,63281.0,63280.0,0.01416423]
[1726937669093,0.154026,63281.0,63280.0,0.002]
[1726937669297,0.154026,63281.0,63280.0,0.01416423]
[1726937670159,0.159026,63281.0,63280.0,0.01416423]
[1726937670380,0.159026,63281.0,63280.0,0.07076049]
[1726937670830,0.154026,63281.0,63280.0,0.07076049]
[1726937671040,0.159026,63281.0,63280.0,0.07076049]
[1726937672820,0.159026,63281.0,63280.0,0.08945016]
[1726937673056,0.159026,63281.0,63280.0,0.08945022]
[1726937673508,0.159026,63281.0,63280.0,0.07076049]
[1726937675073,0.005,63281.0,63280.0,0.07076049]
[1726937675306,0.163025,63281.0,63280.0,0.07076049]
[1726937676918,0.005,63281.0,63280.0,0.07076049]
[1726937679071,0.005,63281.0,63280.0,0.0121578]
[1726937679483,0.005,63281.0,63279.0,0.15803]
[1726937679690,0.005,63281.0,63280.0,0.01094138]
[1726937680319,0.158023,63282.0,63280.0,0.01094138]
[1726937680731,0.005,63281.0,63280.0,0.01094138]
[1726937681154,0.005,63281.0,63279.0,0.15803]
[1726937681369,0.005,63281.0,63280.0,0.01093866]
[1726937682222,0.37303924,63283.0,63280.0,0.01093866]
[1726937682439,0.251646,63283.0,63280.0,0.01093866]
[1726937682663,0.005,63282.0,63280.0,0.01093866]
[1726937683092,0.251646,63283.0,63280.0,0.01093866]
[1726937683355,0.256646,63283.0,63280.0,0.01193866]
[1726937684469,0.256646,63283.0,63280.0,0.01293866]
[1726937689813,0.098626,63283.0,63280.0,0.01459066]
[1726937690477,0.256647,63283.0,63280.0,0.01459066]
[1726937692063,0.256647,63283.0,63280.0,0.17261766]
[1726937693378,0.163847,63283.0,63280.0,0.01459066]
[1726937695315,0.163847,63283.0,63280.0,0.17261766]
[1726937698003,0.005826,63283.0,63280.0,0.01459066]
[1726937698218,0.163847,63283.0,63280.0,0.01459066]
[1726937700082,0.005826,63283.0,63280.0,0.17261666]
[1726937700544,0.163847,63283.0,63280.0,0.17261666]
[1726937701259,0.005826,63283.0,63280.0,0.01459066]
[1726937701486,0.163847,63283.0,63280.0,0.01459066]
[1726937701718,0.163847,63283.0,63280.0,0.17261766]
[1726937702610,0.005826,63283.0,63280.0,0.17261766]
[1726937703303,0.005826,63283.0,63280.0,0.01459066]
[1726937703517,0.005826,63283.0,63280.0,0.17261666]
[1726937703749,0.005826,63283.0,63280.0,0.28350706]
[1726937704648,0.005826,63283.0,63280.0,0.17261666]
[1726937705753,0.005826,63283.0,63281.0,0.158024]
[1726937705969,0.005826,63283.0,63282.0,0.01093563]
[1726937706468,0.000826,63283.0,63280.0,0.002652]
[1726937706731,0.000826,63283.0,63282.0,0.48498389]
[1726937706940,0.005826,63283.0,63282.0,1.0026241]
[1726937707150,0.005826,63283.0,63282.0,0.94336443]
[1726937707373,0.005826,63283.0,63282.0,1.00709439]
[1726937707613,0.005826,63283.0,63282.0,1.129422]
[1726937707852,0.005826,63283.0,63282.0,1.07828646]
[1726937708084,0.005826,63283.0,63282.0,1.13007125]
[1726937708303,0.000826,63283.0,63282.0,1.05789469]
[1726937708519,0.005826,63283.0,63282.0,1.05889469]
[1726937709205,0.005826,63283.0,63282.0,1.10631029]
[1726937709428,0.005826,63283.0,63282.0,1.10630995]
[1726937709861,0.005826,63283.0,63282.0,1.10730995]
[1726937710555,0.005826,63283.0,63282.0,1.05989469]
[1726937710991,0.005826,63283.0,63282.0,0.93756708]
[1726937711213,0.005826,63283.0,63282.0,0.93318558]
[1726937711464,0.005826,63283.0,63282.0,0.98541907]
[1726937712090,0.005826,63283.0,63282.0,0.91697357]
[1726937712308,0.005826,63283.0,63282.0,0.88578229]
[1726937715840,0.005826,63283.0,63282.0,1.0179819]
[1726937716053,0.005826,63283.0,63282.0,0.88578229]
[1726937716704,0.005826,63283.0,63282.0,0.90358981]
[1726937728243,0.005826,63283.0,63282.0,1.21816014]
[1726937728492,0.005826,63283.0,63282.0,1.29596014]
[1726937728731,0.005826,63283.0,63282.0,1.39073695]
[1726937728971,0.005826,63283.0,63282.0,1.58081653]
[1726937729907,0.005826,63283.0,63282.0,1.57981653]
[1726937730149,0.000826,63283.0,63282.0,1.57881653]
[1726937730610,0.005826,63283.0,63282.0,1.57881653]
[1726937731299,0.005826,63283.0,63282.0,1.48406494]
[1726937732411,0.005826,63283.0,63282.0,1.51609289]
[1726937733558,0.005826,63283.0,63282.0,1.53982295]
[1726937733774,0.005826,63283.0,63282.0,1.44504614]
[1726937734714,0.005826,63283.0,63282.0,1.50357204]
[1726937735584,0.005826,63283.0,63282.0,1.42517469]
[1726937736898,0.005826,63283.0,63282.0,1.38615742]
[1726937737136,0.005826,63283.0,63282.0,1.36664879]
[1726937737403,0.000826,63283.0,63282.0,1.36664879]
[1726937737829,0.002826,63283.0,63282.0,1.36664879]
[1726937738265,0.000826,63283.0,63282.0,1.36664879]
[1726937738490,0.000826,63283.0,63282.0,1.37264879]
[1726937738718,0.000826,63283.0,63282.0,1.37264304]
[1726937738967,0.000826,63283.0,63282.0,0.66275304]
[1726937739239,0.568486,63283.0,63282.0,0.08744004]
[1726937739469,1.42036072,63283.0,63282.0,0.05479206]
[1726937739712,1.42036072,63283.0,63282.0,0.01748113]
[1726937739713,1.4390341,63283.0,63282.0,0.01748113]
[1726937739987,1.4921493,63283.0,63282.0,0.013652]
[1726937740455,1.42036072,63283.0,63282.0,0.001652]
[1726937740694,1.42536072,63283.0,63282.0,0.002652]
[1726937740935,1.42536072,63283.0,63282.0,0.003652]
[1726937741172,1.42036072,63283.0,63282.0,0.001652]
[1726937741412,1.42536072,63283.0,63282.0,0.003652]
[1726937746140,1.45013242,63283.0,63282.0,0.003652]
[1726937748095,1.39339137,63283.0,63282.0,0.003652]
[1726937763189,1.49339137,63283.0,63282.0,0.003652]
[1726937763914,1.54788332,63283.0,63282.0,0.003652]
[1726937765838,1.91370519,63283.0,63282.0,0.003652]
[1726937767105,1.91570519,63283.0,63282.0,0.003652]
[1726937767833,1.86592332,63283.0,63282.0,0.003652]
[1726937771510,1.81143137,63283.0,63282.0,0.003652]
[1726937772915,1.86592332,63283.0,63282.0,0.003652]
[1726937776436,1.88467671,63283.0,63282.0,0.003652]
[1726937776919,2.35599858,63283.0,63282.0,0.003652]
[1726937777121,2.45037833,63283.0,63282.0,0.002652]
[1726937777340,2.44537833,63283.0,63282.0,0.001652]
[1726937777563,2.45237833,63283.0,63282.0,0.003652]
[1726937777788,2.45237833,63283.0,63282.0,0.002652]
[1726937778055,2.11276701,63283.0,63282.0,0.003652]
[1726937778274,2.04195858,63283.0,63282.0,0.002652]
[1726937778727,2.11277736,63283.0,63282.0,0.003652]
[1726937778951,2.10577736,63283.0,63282.0,0.002652]
[1726937779181,2.04895858,63283.0,63282.0,0.003652]
[1726937779417,2.14333833,63283.0,63282.0,0.003652]
[1726937779620,2.10579145,63283.0,63282.0,0.002652]
[1726937779855,2.10579145,63283.0,63282.0,0.001652]
[1726937780076,2.14333833,63283.0,63282.0,0.001652]
[1726937780305,2.15733833,63283.0,63282.0,0.001652]
[1726937780516,2.06295858,63283.0,63282.0,0.001652]
[1726937780742,2.15742072,63283.0,63282.0,0.001652]
[1726937781214,2.12166551,63283.0,63282.0,0.001652]
[1726937782126,2.02717671,63283.0,63282.0,0.001652]
[1726937782356,2.1451514,63283.0,63282.0,0.001652]
[1726937782595,2.02717671,63283.0,63282.0,0.001652]
[1726937783104,2.1451514,63283.0,63282.0,0.001652]
[1726937783352,2.14537763,63283.0,63282.0,0.001652]
[1726937784272,2.02717671,63283.0,63282.0,0.001652]
[1726937788536,2.12249376,63283.0,63282.0,0.001652]
[1726937788785,1.99017671,63283.0,63282.0,0.001652]
[1726937789288,2.00417671,63283.0,63282.0,0.002652]
[1726937789928,1.99017671,63283.0,63282.0,0.001652]
[1726937790377,2.00417671,63283.0,63282.0,0.002652]
[1726937790594,2.09449942,63283.0,63282.0,0.002652]
[1726937791099,1.98817671,63283.0,63282.0,0.003652]
[1726937791540,1.97617671,63283.0,63282.0,0.002652]
[1726937791912,1.98717671,63283.0,63282.0,0.003652]
[1726937793676,1.93268476,63283.0,63282.0,0.003652]
[1726937793912,1.55691452,63283.0,63282.0,0.003652]
[1726937794378,1.43854476,63283.0,63282.0,0.003652]
[1726937794643,1.50957244,63283.0,63282.0,0.003652]
[1726937795505,1.43854476,63283.0,63282.0,0.003652]
[1726937796634,1.50957244,63283.0,63282.0,0.003652]
[1726937797205,1.43854476,63283.0,63282.0,0.003652]
[1726937797427,1.50957776,63283.0,63282.0,0.003652]
[1726937797637,1.49857776,63283.0,63282.0,0.002652]
[1726937797861,1.42754476,63283.0,63282.0,0.002652]
[1726937798070,1.4845731,63283.0,63282.0,0.001652]
[1726937798283,1.49857532,63283.0,63282.0,0.002652]
[1726937798566,1.51057532,63283.0,63282.0,0.003652]
[1726937798726,1.49857532,63283.0,63282.0,0.002652]
[1726937798949,1.48457532,63283.0,63282.0,0.001652]
[1726937799149,1.49857532,63283.0,63282.0,0.002652]
[1726937799620,1.42754476,63283.0,63282.0,0.002652]
[1726937800202,1.43854476,63283.0,63282.0,0.003652]
[1726937802834,1.42454476,63283.0,63282.0,0.002652]
[1726937803287,1.43854476,63283.0,63282.0,0.003652]
[1726937803786,1.43854476,63283.0,63282.0,0.002652]
[1726937804032,1.42754476,63283.0,63282.0,0.002652]
[1726937804257,1.43754476,63283.0,63282.0,0.003652]
[1726937804501,1.42754476,63283.0,63282.0,0.002652]
[1726937804762,1.50857642,63283.0,63282.0,0.003652]
[1726937805043,1.43754476,63283.0,63282.0,0.003652]
[1726937805282,1.42354476,63283.0,63282.0,0.002652]
[1726937805725,1.43754476,63283.0,63282.0,0.003652]
[1726937811197,1.12150476,63283.0,63282.0,0.003652]
[1726937812501,1.43754476,63283.0,63282.0,0.003652]
[1726937812720,1.12150476,63283.0,63282.0,0.003652]
[1726937828121,1.00275137,63283.0,63282.0,0.003652]
[1726937830597,1.00275137,63283.0,63282.0,0.102852]
[1726937830598,0.68671137,63283.0,63282.0,0.102852]
[1726937830816,0.0495977,63283.0,63282.0,0.1133024]
[1726937831064,0.2076177,63283.0,63282.0,0.1133024]
[1726937831295,0.2076177,63283.0,63282.0,0.12247528]
[1726937833518,0.0495977,63283.0,63282.0,0.12247528]
[1726937834180,0.2076177,63283.0,63282.0,0.12247528]
[1726937835363,0.0495977,63283.0,63282.0,0.12247528]
[1726937835830,0.0355977,63283.0,63282.0,0.12147528]
[1726937837435,0.0445977,63283.0,63282.0,0.12247528]
[1726937837664,0.0255977,63283.0,63282.0,0.27849728]
[1726937837891,0.0285977,63283.0,63282.0,0.12047528]
[1726937838122,0.0315977,63283.0,63282.0,0.12047528]
[1726937838584,0.0315977,63283.0,63282.0,0.27849728]
[1726937839053,0.0315977,63283.0,63282.0,0.59454228]
[1726937839498,0.006826,63283.0,63282.0,0.91058728]
[1726937840445,0.003826,63283.0,63282.0,0.91058728]
[1726937840694,0.000826,63283.0,63282.0,0.91058728]
[1726937840944,0.004826,63283.0,63282.0,0.91058728]
[1726937841417,0.002826,63283.0,63282.0,0.91358728]
[1726937841883,0.002826,63283.0,63282.0,0.91658728]
[1726937842787,0.002826,63283.0,63282.0,0.91358728]
[1726937843980,0.002826,63283.0,63282.0,1.22963228]
[1726937844203,0.000826,63283.0,63282.0,1.22863228]
[1726937845120,0.000826,63283.0,63282.0,1.23063228]
[1726937850966,0.000826,63283.0,63282.0,0.90413688]
[1726937854106,0.000826,63283.0,63282.0,1.22018188]
[1726937855757,0.000826,63283.0,63282.0,1.2412672]
[1726937857706,0.000826,63283.0,63282.0,1.24123593]
[1726937858180,0.000826,63283.0,63282.0,1.22018188]
[1726937858392,0.000826,63283.0,63282.0,1.35419033]
[1726937859861,0.000826,63283.0,63282.0,1.37524355]
[1726937860771,0.000826,63283.0,63282.0,1.42254378]
[1726937860990,0.000826,63283.0,63282.0,1.37524355]
[1726937867368,0.000826,63283.0,63282.0,1.85434222]
[1726937867781,0.000826,63283.0,63282.0,1.92529256]
[1726937868013,0.000826,63283.0,63282.0,1.92528435]
[1726937868221,0.000826,63283.0,63282.0,1.85434222]
[1726937868453,0.000826,63283.0,63282.0,1.92528435]
[1726937869339,0.000826,63283.0,63282.0,1.85434222]
[1726937869580,0.000826,63283.0,63282.0,1.94893173]
[1726937869781,0.000826,63283.0,63282.0,1.85434222]
[1726937870383,0.000826,63283.0,63282.0,1.88969631]
[1726937871500,0.000826,63283.0,63282.0,1.98429219]
[1726937871977,0.000826,63283.0,63282.0,1.833289]
[1726937872180,0.000826,63283.0,63282.0,1.89080668]
[1726937873335,0.000826,63283.0,63282.0,1.98543287]
[1726937873811,0.000826,63283.0,63282.0,1.98344517]
[1726937874075,0.001826,63283.0,63282.0,1.99144517]
[1726937874292,0.002826,63283.0,63282.0,2.00240777]
[1726937874510,0.001826,63283.0,63282.0,1.99240777]
[1726937874731,0.002826,63283.0,63282.0,2.00340777]
[1726937874968,0.002826,63283.0,63282.0,1.9797606]
[1726937875204,0.002826,63283.0,63282.0,1.35951583]
[1726937875707,0.002826,63283.0,63282.0,1.43051469]
[1726937875944,0.002826,63283.0,63282.0,1.35951583]
[1726937876170,0.002826,63283.0,63282.0,1.45181583]
[1726937876409,0.002826,63283.0,63282.0,1.52281469]
[1726937877135,0.002826,63283.0,63282.0,1.68590027]
[1726937879196,0.002826,63283.0,63282.0,1.40689966]
[1726937879469,0.002826,63283.0,63282.0,0.52899968]
[1726937879681,0.002826,63283.0,63282.0,0.50689188]
[1726937880378,0.001826,63283.0,63282.0,0.49589188]
[1726937880665,0.001826,63283.0,63282.0,0.49989188]
[1726937880890,0.000826,63283.0,63282.0,0.48889188]
[1726937881123,0.000826,63283.0,63282.0,0.17284688]
[1726937881337,0.000826,63283.0,63282.0,0.16884688]
[1726937881525,0.000826,63283.0,63282.0,0.17284688]
[1726937881809,0.000826,63283.0,63282.0,0.17484688]
[1726937882454,0.000826,63283.0,63282.0,0.49089188]
[1726937882913,0.000826,63283.0,63282.0,0.48689188]
[1726937883133,0.000826,63283.0,63282.0,0.57959301]
[1726937883380,0.000826,63283.0,63282.0,0.58159301]
[1726937883817,0.000826,63283.0,63282.0,0.26554801]
[1726937884540,0.000826,63283.0,63282.0,0.58159301]
[1726937885695,0.000826,63283.0,63282.0,0.89763801]
[1726937885915,0.000826,63283.0,63282.0,0.94500537]
[1726937886142,0.000826,63283.0,63282.0,0.89763801]
[1726937886403,0.000826,63283.0,63282.0,0.96868906]
[1726937886618,0.000826,63283.0,63282.0,0.89763801]
[1726937886841,0.000826,63283.0,63282.0,0.94502068]
[1726937887730,0.000826,63283.0,63282.0,0.62897568]
[1726937887947,0.000826,63283.0,63282.0,0.58159301]
[1726937889059,0.086826,63288.0,63285.0,0.158014]
[1726937889278,0.086826,63288.0,63286.0,0.06289677]
[1726937889524,0.086826,63288.0,63286.0,0.08978915]
[1726937889953,0.244833,63288.0,63286.0,0.08978915]
[1726937890390,0.247833,63288.0,63286.0,0.08978915]
[1726937890616,0.247833,63288.0,63287.0,0.06602013]
[1726937890860,0.086826,63288.0,63287.0,0.07512443]
[1726937891100,0.090826,63288.0,63287.0,0.07512443]
[1726937891327,0.086826,63288.0,63287.0,0.07512443]
[1726937891552,0.090826,63288.0,63287.0,0.07512443]
[1726937891784,0.086826,63288.0,63287.0,0.07512443]
[1726937892243,0.090826,63288.0,63287.0,0.07512443]
[1726937892466,0.007,63288.0,63287.0,0.54915443]
[1726937892914,0.004,63288.0,63287.0,0.56693698]
[1726937893386,0.007,63288.0,63287.0,0.56693698]
[1726937893623,0.003,63288.0,63287.0,0.56693698]
[1726937893836,0.0924,63293.0,63290.0,0.158001]
[1726937894056,0.0924,63293.0,63291.0,0.10605738]
[1726937894293,0.0924,63293.0,63291.0,0.26405738]
[1726937894510,0.0834002,63297.0,63291.0,0.10605738]
[1726937894757,0.0042002,63297.0,63296.0,0.157987]
[1726937895005,0.0042002,63297.0,63296.0,0.21599034]
[1726937895216,0.0042002,63297.0,63296.0,0.05800334]
[1726937896177,0.0042002,63297.0,63296.0,0.21599034]
[1726937896612,0.0152002,63297.0,63296.0,0.23472796]
[1726937897490,0.0222002,63297.0,63296.0,0.23572796]
[1726937898176,0.0230262,63297.0,63296.0,0.55170296]
[1726937898406,0.0230262,63297.0,63296.0,0.23572796]
[1726937904930,0.0230262,63297.0,63296.0,0.24490165]
[1726937905768,0.0230262,63297.0,63296.0,0.08691465]
[1726937911414,0.0230262,63297.0,63296.0,0.97185165]
[1726937911632,0.0230262,63297.0,63296.0,0.91384831]
[1726937912280,0.0050262,63297.0,63296.0,0.91184831]
[1726937912490,0.0120262,63297.0,63296.0,0.91284831]
[1726937912707,0.0190262,63297.0,63296.0,0.91384831]
[1726937912928,0.0120262,63297.0,63296.0,1.05650666]
[1726937913140,0.0050262,63297.0,63296.0,1.05550666]
[1726937914268,0.0080262,63297.0,63296.0,1.05550666]
[1726937914485,0.0100262,63297.0,63296.0,1.05550666]
[1726937915163,0.0050262,63297.0,63296.0,1.05550666]
[1726937915857,0.0060262,63297.0,63296.0,1.05550666]
[1726937917233,0.0050262,63297.0,63296.0,1.05550666]
[1726937917443,0.0050262,63297.0,63296.0,1.05650666]
[1726937918107,0.0050262,63297.0,63296.0,1.05850666]
[1726937918298,0.0050262,63297.0,63296.0,1.05750666]
[1726937918742,0.0050262,63297.0,63296.0,1.05950666]
[1726937921302,0.0050262,63297.0,63296.0,1.06115866]
[1726937923156,0.0050262,63297.0,63296.0,0.65018366]
[1726937930189,0.0050262,63297.0,63296.0,0.50652531]
[1726937931300,0.0050262,63297.0,63296.0,0.60392531]
[1726937932476,0.0050262,63297.0,63296.0,0.91990031]
[1726937935586,0.0050262,63297.0,63296.0,0.60392531]
[1726937936064,0.0050262,63297.0,63296.0,0.91990031]
[1726937936288,0.0050262,63297.0,63296.0,1.05705112]
[1726937937067,0.0050262,63297.0,63296.0,1.08866591]
[1726937938868,0.0050262,63297.0,63296.0,1.05705112]
[1726937939010,0.0050262,63297.0,63296.0,0.77272187]
[1726937939243,0.0050262,63297.0,63296.0,0.74107612]
[1726937939442,0.0050262,63297.0,63296.0,1.05705112]
[1726937939666,0.0050262,63297.0,63296.0,1.08869772]
[1726937939868,0.0050262,63297.0,63296.0,1.05705112]
[1726937940396,0.0050262,63297.0,63296.0,0.64367612]
[1726937940980,0.0050262,63297.0,63296.0,0.67534357]
[1726937942667,0.0050262,63297.0,63296.0,0.67533004]
[1726937943071,0.0050262,63297.0,63296.0,0.64367612]
[1726937943247,0.0050262,63297.0,63296.0,0.6753274]
[1726937946143,0.0050262,63297.0,63296.0,0.67531657]
[1726937949371,0.0050262,63297.0,63296.0,0.64367612]
[1726937949594,0.0050262,63297.0,63296.0,0.67531041]
[1726937950862,0.0050262,63297.0,63296.0,0.69505711]
[1726937951070,0.0050262,63297.0,63296.0,1.01103211]
[1726937951281,0.0050262,63297.0,63296.0,0.69505711]
[1726937951512,0.0050262,63297.0,63296.0,0.37908211]
[1726937951716,0.0050262,63297.0,63296.0,0.05231001]
[1726937951940,0.1022262,63297.0,63296.0,0.21029701]
[1726937952644,0.1022262,63297.0,63296.0,0.50652531]
[1726937952866,0.1022262,63297.0,63296.0,0.52617724]
[1726937953337,0.1022262,63297.0,63296.0,0.54452697]
[1726937953773,0.0050262,63297.0,63296.0,0.54452697]
[1726937955751,0.0050262,63297.0,63296.0,0.54461445]
[1726937956780,0.0050262,63297.0,63296.0,0.59199109]
[1726937957680,0.0050262,63297.0,63296.0,0.54461445]
[1726937959647,0.0050262,63297.0,63296.0,0.52487504]
[1726937959885,0.0050262,63297.0,63296.0,0.59199747]
[1726937960124,0.0050262,63297.0,63296.0,0.54462083]
[1726937962791,0.0050262,63297.0,63296.0,0.52487504]
[1726937963039,0.0050262,63297.0,63296.0,0.54463349]
[1726937968625,0.0050262,63297.0,63296.0,0.22865849]
[1726937969274,0.0050262,63297.0,63296.0,0.21030876]
[1726937970849,0.0050262,63297.0,63296.0,0.20769832]
[1726937976712,0.0050262,63297.0,63296.0,0.2076452]
[1726937976927,0.0050262,63297.0,63296.0,0.0496582]
[1726937978480,0.1630112,63297.0,63296.0,0.0496582]
[1726937979103,0.1630112,63297.0,63296.0,0.08226293]
[1726937979349,0.1630112,63297.0,63296.0,0.08026293]
[1726937979742,0.1630112,63297.0,63296.0,0.07826293]
[1726937980394,0.0060262,63297.0,63296.0,0.0585576]
[1726937980874,0.0060262,63297.0,63296.0,0.07826852]
[1726937981108,0.0070262,63297.0,63296.0,0.07826852]
[1726937982205,0.8884512,63297.0,63296.0,0.04566379]
[1726937982414,0.8884512,63297.0,63296.0,0.02595287]
[1726937982649,0.8884512,63297.0,63296.0,0.001652]
[1726937983771,0.7969512,63297.0,63296.0,0.001652]
[1726937985123,0.4809812,63297.0,63296.0,0.001652]
[1726937985557,0.4809812,63297.0,63296.0,0.04131509]
[1726937985788,0.4809812,63297.0,63296.0,0.04788153]
[1726937986412,0.4809812,63297.0,63296.0,0.06561915]
[1726937989468,0.1650112,63297.0,63296.0,0.06561915]
[1726937992452,0.0070262,63297.0,63296.0,0.22360615]
[1726937992896,0.0070262,63297.0,63296.0,0.54274068]
[1726937993113,0.0070262,63297.0,63296.0,0.85555615]
[1726937993332,0.0070262,63297.0,63296.0,0.87677378]
[1726937993603,0.0070262,63297.0,63296.0,0.90288965]
[1726937993820,0.0070262,63297.0,63296.0,0.85555615]
[1726937994090,0.0060262,63297.0,63296.0,0.85555615]
[1726937994305,0.0050262,63297.0,63296.0,0.86055615]
[1726937994542,0.0050262,63297.0,63296.0,0.86555615]
[1726937995011,0.0050262,63297.0,63296.0,0.91288965]
[1726937995238,0.0050262,63297.0,63296.0,0.86555615]
[1726937997250,0.0050262,63297.0,63296.0,0.91288965]
[1726937997485,0.0050262,63297.0,63296.0,0.86555615]
[1726937997707,0.0050262,63297.0,63296.0,0.91289748]
[1726937997926,0.0050262,63297.0,63296.0,0.86555615]
[1726938001126,0.0050262,63297.0,63296.0,0.91289748]
[1726938002073,0.0050262,63297.0,63296.0,0.88658449]
[1726938002546,0.0050262,63297.0,63296.0,0.86555615]
[1726938002783,0.0050262,63297.0,63296.0,0.54958115]
[1726938003687,0.0050262,63297.0,63296.0,1.03625615]
[1726938003992,0.0050262,63297.0,63296.0,1.19930982]
[1726938004256,0.0050262,63297.0,63296.0,1.17065476]
[1726938004497,0.0050262,63297.0,63296.0,0.96025615]
[1726938006137,0.0050262,63297.0,63296.0,1.00760298]
[1726938006364,0.0050262,63297.0,63296.0,1.00760098]
[1726938006614,0.0050262,63297.0,63296.0,0.92059306]
[1726938007308,0.0050262,63297.0,63296.0,0.28864306]
[1726938007525,0.0050262,63297.0,63296.0,0.50991806]
[1726938008693,0.0050262,63297.0,63296.0,0.49991806]
[1726938008941,0.0050262,63297.0,63296.0,0.50091806]
[1726938009596,0.0050262,63297.0,63296.0,0.50291806]
[1726938009844,0.0050262,63297.0,63296.0,0.18594306]
[1726938010305,0.0050262,63297.0,63296.0,0.18794306]
[1726938010996,0.0050262,63297.0,63296.0,0.57561697]
[1726938011231,0.0050262,63297.0,63296.0,0.64663422]
[1726938011526,0.0050262,63297.0,63296.0,0.57561697]
[1726938012248,0.0050262,63297.0,63296.0,0.62295629]
[1726938012682,0.0050262,63297.0,63296.0,0.57561697]
[1726938018330,0.0050262,63297.0,63296.0,0.25964197]
[1726938018561,0.0050262,63297.0,63296.0,0.57561697]
[1726938019298,0.0050262,63297.0,63296.0,0.62295368]
[1726938019752,0.0050262,63297.0,63296.0,0.57561697]
[1726938023648,0.0050262,63297.0,63296.0,0.62295368]